bitfinex/quotes_ETHUSD_20240925
["timestamp","ask_amount","ask_price","bid_price","bid_amount"]
[1727286753661,0.07092571,2580.2,2580.1,15.0]
[1727286753960,7.55143755,2580.4,2580.1,15.0]
[1727286754160,3.94658571,2580.2,2580.1,15.0]
[1727286754348,3.87553,2580.3,2580.1,15.0]
[1727286754532,0.07092571,2580.2,2580.1,15.0]
[1727286754856,3.87553,2580.3,2580.1,15.0]
[1727286755060,0.07092571,2580.2,2580.1,15.0]
[1727286755213,3.87552,2580.3,2580.1,15.0]
[1727286755419,0.07092571,2580.2,2580.1,15.0]
[1727286755620,8.37473326,2580.2,2580.1,15.0]
[1727286759067,4.49907326,2580.2,2580.1,15.0]
[1727286759237,4.69868571,2580.2,2580.1,15.0]
[1727286759435,9.68279396,2580.2,2580.1,15.0]
[1727286774005,13.23279396,2580.2,2580.1,7.16780383]
[1727286774165,15.22444501,2580.2,2580.1,7.16780383]
[1727286775359,13.23279396,2580.2,2580.1,7.16780383]
[1727286775769,8.60503396,2580.2,2578.9,0.7557]
[1727286776002,3.67604755,2579.0,2578.9,0.7557]
[1727286776773,3.74441812,2579.0,2578.9,0.7557]
[1727286776993,0.06837057,2579.0,2578.9,0.7557]
[1727286777275,3.87724,2579.2,2578.9,0.7557]
[1727286777494,0.06837057,2579.0,2578.9,0.7557]
[1727286777702,3.87688,2579.4,2578.9,5.096665]
[1727286777871,0.06561519,2579.0,2578.9,5.096665]
[1727286778076,3.87688,2579.4,2578.9,5.096665]
[1727286778373,0.06561519,2579.0,2578.9,5.096665]
[1727286778584,3.87674,2579.5,2579.0,3.87738]
[1727286778817,3.87674,2579.5,2579.2,0.8261]
[1727286778976,11.23642,2579.7,2579.3,3.87697]
[1727286779176,6.87628,2579.8,2579.3,3.87697]
[1727286779376,3.0,2579.8,2579.3,3.87697]
[1727286779688,6.87633,2579.8,2579.3,4.82473845]
[1727286779890,3.87633,2579.8,2579.3,4.82473845]
[1727286780104,3.87633,2579.8,2579.3,4.82470845]
[1727286780305,8.57556,2579.9,2579.3,4.82470845]
[1727286780489,0.8231,2579.9,2579.3,0.94776845]
[1727286780686,1.19535697,2580.1,2579.6,3.87648]
[1727286780925,3.87597,2580.0,2579.7,0.7769]
[1727286781078,3.87583,2580.1,2579.7,0.7769]
[1727286781274,3.87601,2580.0,2579.7,0.7769]
[1727286784089,3.87624,2579.9,2579.7,0.7769]
[1727286784292,3.87601,2580.0,2579.7,0.7769]
[1727286784818,3.87578,2580.2,2579.7,0.7769]
[1727286784819,7.75154,2580.2,2579.7,1.2887928]
[1727286785023,3.87577,2580.2,2579.7,1.2887928]
[1727286785202,3.87577,2580.2,2579.7,5.1652028]
[1727286785403,3.87577,2580.2,2579.8,0.8209]
[1727286785580,3.87584,2580.1,2579.8,0.8209]
[1727286787199,3.87604,2580.0,2579.8,0.8209]
[1727286787945,3.87584,2580.1,2579.8,0.8209]
[1727286788426,3.87584,2580.1,2579.8,1.290639]
[1727286788992,3.87584,2580.1,2579.8,0.8209]
[1727286789211,3.87606,2580.0,2579.8,0.8209]
[1727286789940,3.87588,2580.1,2579.8,0.8209]
[1727286790099,3.87597,2580.0,2579.8,0.8209]
[1727286790634,1.19535697,2580.1,2579.8,0.8209]
[1727286790793,0.06614499,2579.9,2579.8,0.8209]
[1727286790993,1.19535697,2580.2,2579.8,0.8209]
[1727286791199,0.06614499,2579.9,2579.8,0.8209]
[1727286791395,1.19535697,2580.2,2579.8,0.8209]
[1727286791624,3.87589,2580.1,2579.8,0.8209]
[1727286791797,3.94203499,2580.1,2579.8,0.8209]
[1727286792971,3.94203499,2580.1,2580.0,7.55200755]
[1727286792972,0.06614499,2580.1,2580.0,7.55200755]
[1727286793149,0.06614499,2580.1,2580.0,0.811]
[1727286793312,3.87552,2580.3,2580.0,0.811]
[1727286793644,0.06668345,2580.1,2580.0,0.811]
[1727286793828,3.87555,2580.3,2580.0,0.811]
[1727286794004,0.06668345,2580.2,2580.0,0.811]
[1727286794229,3.8753,2580.5,2580.0,4.68695]
[1727286794627,0.06683105,2580.4,2580.0,4.68695]
[1727286796230,3.94221105,2580.4,2580.0,0.811]
[1727286796464,0.06683105,2580.4,2580.0,4.68695]
[1727286797471,3.94220105,2580.4,2580.0,0.811]
[1727286797759,4.84348685,2580.4,2580.0,0.811]
[1727286797980,3.87552,2580.3,2580.0,0.811]
[1727286798459,0.06491771,2580.2,2580.0,0.811]
[1727286798622,3.87552,2580.3,2580.0,0.811]
[1727286798822,0.06491771,2580.2,2580.0,0.811]
[1727286799136,3.87552,2580.3,2580.0,0.811]
[1727286799338,0.06491771,2580.1,2580.0,0.811]
[1727286799554,3.87552,2580.3,2580.0,0.811]
[1727286799731,3.87597,2580.0,2579.7,0.8281]
[1727286800126,0.06491771,2579.9,2579.7,0.8281]
[1727286800559,0.16182935,2579.9,2579.5,3.87671]
[1727286800774,0.46869765,2579.9,2579.4,0.7831]
[1727286801073,4.34494765,2579.9,2579.4,0.7831]
[1727286801357,3.94116771,2579.9,2579.4,4.65995]
[1727286802565,3.87629,2579.8,2579.4,4.65995]
[1727286802932,0.06489164,2579.7,2579.4,4.65995]
[1727286803274,0.06489164,2579.6,2579.4,0.7831]
[1727286803437,3.87627,2579.8,2579.4,0.7831]
[1727286803773,0.06461353,2579.7,2579.4,0.7831]
[1727286804137,4.343147,2579.8,2579.4,0.7831]
[1727286804341,4.343147,2579.8,2579.2,0.7638]
[1727286804342,3.94120353,2579.6,2579.2,0.7638]
[1727286804630,3.87659,2579.6,2579.2,0.7638]
[1727286804856,0.06459614,2579.5,2579.2,0.7638]
[1727286806532,0.06459614,2579.5,2579.3,3.87695]
[1727286806770,1.19535697,2580.0,2579.4,3.87687]
[1727286806930,3.87593,2580.1,2579.6,3.87649]
[1727286807127,0.85456003,2580.1,2579.6,3.87649]
[1727286807464,4.69109,2580.2,2579.6,3.87644]
[1727286807638,4.69109,2580.2,2579.5,4.6405]
[1727286807639,7.75209,2580.0,2579.5,4.6405]
[1727286807842,8.608839,2580.0,2579.5,4.6405]
[1727286808150,3.87612,2579.9,2579.5,4.6405]
[1727286808339,5.07115697,2580.2,2579.8,3.87624]
[1727286808542,3.87561,2580.3,2579.7,4.64012]
[1727286808791,1.28292693,2580.2,2579.7,4.64012]
[1727286808945,13.24621697,2580.4,2579.7,4.64012]
[1727286808946,13.24621697,2580.4,2579.8,7.75243]
[1727286809270,13.24621697,2580.4,2579.9,3.8761]
[1727286809477,13.24621697,2580.4,2579.8,3.87618]
[1727286809478,17.12172697,2580.4,2579.8,3.87618]
[1727286809948,15.92634,2580.4,2579.8,3.87618]
[1727286810268,3.87553,2580.3,2579.8,3.87618]
[1727286811749,12.05086,2580.4,2579.8,7.75236]
[1727286812351,12.05086,2580.4,2579.8,3.87618]
[1727286812527,4.69086,2580.4,2579.9,3.67604755]
[1727286812723,3.87546,2580.4,2579.9,7.55215755]
[1727286813064,5.07048697,2580.6,2580.1,3.67604755]
[1727286813276,3.87513,2580.6,2580.1,7.55183755]
[1727286814131,7.75033,2580.6,2580.0,4.63962]
[1727286814362,3.87522,2580.5,2580.0,4.63962]
[1727286814540,3.87522,2580.5,2580.0,5.85880476]
[1727286816352,3.87513,2580.6,2580.0,4.63962]
[1727286816545,3.8757,2580.2,2579.8,0.7942]
[1727286816765,7.75147,2580.2,2579.8,0.7942]
[1727286817073,4.665,2580.2,2579.8,0.7942]
[1727286817369,5.1315,2580.2,2579.8,0.7942]
[1727286817871,1.2558,2580.2,2579.6,0.8303]
[1727286818054,3.87605,2580.0,2579.6,0.8303]
[1727286818429,3.87582,2580.1,2579.6,0.8303]
[1727286818675,3.87582,2580.1,2579.6,4.70677]
[1727286820749,0.06451794,2580.0,2579.7,3.87638]
[1727286821062,4.66504,2580.2,2579.7,3.87638]
[1727286821231,0.06451794,2579.9,2579.7,3.87638]
[1727286821440,3.87583,2580.1,2579.6,4.70685]
[1727286821742,3.87556,2580.3,2579.7,7.55245755]
[1727286821945,0.06451794,2580.2,2580.0,0.7727]
[1727286822135,4.64855,2580.5,2580.0,0.7727]
[1727286822136,3.87537,2580.4,2580.0,0.7727]
[1727286822334,0.06460485,2580.3,2580.0,0.7727]
[1727286822581,0.06460485,2580.3,2580.0,4.64864]
[1727286822892,0.06460485,2580.3,2580.0,0.7727]
[1727286823032,3.87546,2580.4,2579.8,4.64885]
[1727286823033,3.87536,2580.4,2579.8,4.64885]
[1727286823236,3.94029485,2580.2,2579.8,4.64885]
[1727286823572,4.64889,2580.2,2579.8,0.7727]
[1727286823768,0.06477866,2580.1,2579.6,7.68146]
[1727286823973,3.94066866,2580.1,2579.6,7.68146]
[1727286824175,3.94066866,2580.1,2579.6,11.55795]
[1727286824379,3.94066866,2580.1,2579.6,11.55786]
[1727286824733,3.94066866,2580.1,2579.7,3.8764]
[1727286825085,3.87597,2580.0,2579.4,4.69938]
[1727286825237,3.87597,2580.0,2579.4,0.8226]
[1727286825238,3.87635,2579.8,2579.4,0.8226]
[1727286825438,7.75276,2579.8,2579.4,0.8226]
[1727286825638,0.06456139,2579.7,2579.4,4.69946]
[1727286825943,3.87635,2579.8,2579.4,4.69946]
[1727286826172,3.94098139,2579.7,2579.4,0.8226]
[1727286826369,0.06456139,2579.7,2579.3,3.87701]
[1727286826573,0.06456139,2579.7,2579.3,7.75402]
[1727286826739,4.68884,2579.9,2579.3,7.75402]
[1727286826940,0.06456139,2579.8,2579.3,7.75402]
[1727286827579,0.06456139,2579.8,2579.4,3.87686]
[1727286827739,0.06456139,2579.8,2579.5,3.87668]
[1727286827939,0.06456139,2579.8,2579.4,3.87686]
[1727286829369,3.87608,2580.0,2579.6,3.87655]
[1727286829549,0.06446579,2579.9,2579.6,3.87655]
[1727286829747,0.06446579,2579.9,2579.7,7.55234755]
[1727286829979,3.87576,2580.2,2579.7,7.55234755]
[1727286830183,0.06446579,2580.1,2579.7,3.67604755]
[1727286830473,0.06446579,2580.1,2579.9,8.30766755]
[1727286830678,0.06446579,2580.1,2580.0,3.87596]
[1727286830843,0.7727,2580.5,2580.0,3.87585]
[1727286831158,3.87516,2580.6,2580.0,3.87585]
[1727286831472,3.93975579,2580.5,2580.0,3.87585]
[1727286831642,3.93975579,2580.5,2580.0,5.09420876]
[1727286831851,0.06446579,2580.5,2580.3,0.7556]
[1727286832275,4.684407,2580.8,2580.3,0.7556]
[1727286832484,0.06446579,2580.4,2580.3,0.7556]
[1727286832689,4.684407,2580.8,2580.3,0.7556]
[1727286832863,0.06446579,2580.4,2580.3,0.7556]
[1727286833191,3.87507,2580.6,2580.1,0.7556]
[1727286833376,0.06446579,2580.4,2580.1,0.7556]
[1727286833572,3.87507,2580.6,2580.1,0.7556]
[1727286833796,0.06446579,2580.5,2580.1,0.7556]
[1727286833966,3.93969579,2580.5,2580.1,0.7556]
[1727286834690,0.06446579,2580.5,2580.1,0.7556]
[1727286835152,4.39250701,2580.5,2580.1,0.7556]
[1727286835359,4.68901,2580.4,2579.9,4.62891]
[1727286835552,0.06476125,2580.3,2579.9,4.62891]
[1727286835891,0.06476125,2580.3,2579.9,0.7528]
[1727286836195,4.03725155,2580.3,2579.9,0.7528]
[1727286836487,3.8757,2580.2,2579.7,4.69433]
[1727286836696,0.09690631,2580.1,2579.7,0.818]
[1727286836986,0.06476125,2580.0,2579.8,3.87626]
[1727286837193,0.06476125,2580.0,2579.8,7.75242]
[1727286837396,0.8135,2580.4,2579.9,7.55215755]
[1727286838195,4.65126,2580.6,2580.0,3.87586]
[1727286838522,5.56927804,2580.6,2580.0,3.87586]
[1727286838794,3.87525,2580.5,2580.0,3.87586]
[1727286839690,3.87525,2580.5,2579.9,7.55215755]
[1727286839691,3.87545,2580.4,2579.9,3.87611]
[1727286839897,0.807,2580.2,2579.8,3.87625]
[1727286840093,0.807,2580.2,2579.8,3.87618]
[1727286840295,0.807,2580.2,2579.8,7.75237]
[1727286840621,4.263175,2580.3,2579.8,3.87618]
[1727286842112,0.387545,2580.3,2579.7,0.818]
[1727286842280,0.387545,2580.3,2579.5,3.87669]
[1727286842281,3.87624,2579.9,2579.5,3.87669]
[1727286842608,0.387624,2579.8,2579.5,3.87669]
[1727286842779,3.8759,2580.1,2579.6,3.87653]
[1727286842966,7.75185,2580.1,2579.6,3.87653]
[1727286843175,3.8759,2580.1,2579.6,3.87653]
[1727286843482,1.99535697,2580.2,2579.5,3.87658]
[1727286843683,3.87604,2580.0,2579.5,3.87658]
[1727286847013,0.6258532,2580.1,2579.2,3.87706]
[1727286847014,3.87649,2579.7,2579.2,3.87706]
[1727286847184,4.64308,2579.6,2579.2,3.87706]
[1727286847384,1.618455,2579.6,2579.2,3.87706]
[1727286847694,1.618455,2579.6,2579.3,3.877]
[1727286847926,4.69097,2579.8,2579.3,3.877]
[1727286848205,0.8147,2579.8,2579.4,3.87685]
[1727286848416,4.69073,2580.0,2579.5,0.8328]
[1727286848567,3.87615,2579.9,2579.5,4.70951]
[1727286849316,3.87615,2579.9,2579.2,0.7806]
[1727286849519,1.84379695,2580.0,2579.1,3.87725]
[1727286849520,3.87666,2579.6,2579.1,3.87725]
[1727286849808,3.87666,2579.6,2578.9,7.55354755]
[1727286849809,0.7536,2579.4,2578.9,3.8775]
[1727286849978,4.63054,2579.4,2578.9,3.8775]
[1727286850180,4.63054,2579.4,2578.8,0.7806]
[1727286850369,1.19535697,2579.8,2578.6,3.87806]
[1727286850370,3.8774,2579.1,2578.6,3.87806]
[1727286850570,3.87763,2578.9,2578.5,0.7938]
[1727286850804,0.16089788,2578.8,2578.4,7.75652]
[1727286851011,0.1609024,2578.8,2578.4,3.8783]
[1727286851180,0.1609024,2578.8,2578.3,0.7938]
[1727286851181,4.99425645,2578.8,2578.3,3.8785]
[1727286851389,4.89723827,2578.8,2578.3,3.8785]
[1727286851609,4.89723827,2578.8,2578.4,3.87836]
[1727286851776,1.01945827,2578.8,2578.5,3.87821]
[1727286852284,0.06394422,2578.8,2578.4,3.87836]
[1727286852493,0.06394422,2578.8,2578.6,3.87795]
[1727286852871,0.7763,2579.0,2578.5,7.55420755]
[1727286852872,0.7763,2579.0,2578.5,3.87816]
[1727286853179,4.65387,2579.0,2578.5,3.87816]
[1727286853486,0.06394422,2578.9,2578.5,3.87816]
[1727286854486,0.06394422,2578.9,2578.5,7.75632]
[1727286854915,0.06394422,2578.9,2578.5,3.87816]
[1727286855281,0.06394422,2578.9,2578.5,7.75631]
[1727286855622,0.06394422,2578.9,2578.5,7.75629]
[1727286855919,3.94158422,2578.9,2578.5,3.87814]
[1727286856220,3.87777,2578.8,2578.3,3.87842]
[1727286856422,0.06267463,2578.7,2578.3,3.87842]
[1727286856577,3.87777,2578.8,2578.3,3.87842]
[1727286856781,0.06260504,2578.7,2578.3,3.87842]
[1727286857087,4.79436575,2578.8,2578.3,3.87842]
[1727286857584,0.06260504,2578.7,2578.3,3.87842]
[1727286857789,4.79436575,2578.8,2578.3,3.87842]
[1727286857986,0.06260504,2578.7,2578.3,3.87842]
[1727286858314,4.79436575,2578.8,2578.3,7.75685]
[1727286858480,0.06260504,2578.6,2578.3,3.87842]
[1727286858817,4.79436575,2578.8,2578.1,3.8788]
[1727286858818,3.94093504,2578.5,2578.1,3.8788]
[1727286859013,0.06260504,2578.5,2578.1,3.87873]
[1727286860078,0.06260504,2578.5,2578.3,3.87844]
[1727286860279,0.06260504,2578.5,2578.1,3.87873]
[1727286860516,3.87808,2578.6,2578.1,3.87873]
[1727286860684,3.87808,2578.6,2578.1,7.75745]
[1727286860685,0.06260504,2578.4,2578.1,7.75745]
[1727286861021,4.43375806,2578.6,2578.1,7.75745]
[1727286861022,0.06260504,2578.3,2578.1,7.75745]
[1727286861237,4.43375806,2578.6,2578.1,7.75745]
[1727286861385,0.06260504,2578.2,2578.1,3.87872]
[1727286861582,4.43375806,2578.6,2578.1,3.87872]
[1727286861793,0.6738509,2578.5,2578.1,7.75742]
[1727286862137,0.6738509,2578.5,2578.1,3.8787]
[1727286862305,0.6738509,2578.5,2578.1,7.75744]
[1727286862508,4.5521209,2578.5,2578.1,3.8787]
[1727286862706,0.88206922,2578.4,2577.8,3.916047]
[1727286862907,0.7851,2578.1,2577.8,0.036847]
[1727286863110,0.7851,2578.1,2577.8,3.916107]
[1727286863311,0.15912472,2578.0,2577.8,3.916107]
[1727286863814,0.1591246,2578.0,2577.8,0.036847]
[1727286864022,0.06214391,2578.0,2577.8,0.036847]
[1727286864199,0.15912911,2578.0,2577.8,0.036847]
[1727286864648,0.06214391,2578.0,2577.8,0.036847]
[1727286864811,4.51070665,2578.0,2577.8,0.036847]
[1727286865011,0.0969866,2577.9,2577.8,0.036847]
[1727286865199,3.94116818,2577.9,2577.8,0.036847]
[1727286865398,0.06204818,2577.9,2577.8,0.036847]
[1727286865716,3.94116818,2577.9,2577.8,0.036847]
[1727286865911,0.96983274,2577.9,2577.8,0.036847]
[1727286866313,4.84895274,2577.9,2577.8,0.036847]
[1727286866838,0.96983274,2577.9,2577.8,0.036847]
[1727286867202,0.06204818,2577.9,2577.8,0.036847]
[1727286868738,0.7851,2578.1,2577.8,0.036847]
[1727286868920,0.06115184,2577.9,2577.8,0.036847]
[1727286869142,0.06115184,2577.9,2577.8,3.916117]
[1727286869341,0.7851,2578.1,2577.8,0.036847]
[1727286869506,0.06115184,2577.9,2577.8,3.916117]
[1727286870028,3.8787,2578.2,2577.8,3.916117]
[1727286870210,0.06115184,2578.1,2577.8,0.036847]
[1727286870842,0.06115184,2578.1,2577.8,3.916107]
[1727286871007,4.6659,2578.5,2577.9,3.87904]
[1727286871209,3.93959184,2578.4,2577.9,3.87904]
[1727286871402,0.06115184,2578.4,2578.0,3.87894]
[1727286871629,3.93953184,2578.4,2577.9,3.87904]
[1727286872317,3.87861,2578.3,2577.8,3.916117]
[1727286872638,3.87887,2578.1,2577.8,0.036847]
[1727286872841,3.94013184,2578.0,2577.8,0.036847]
[1727286873089,0.06115184,2578.0,2577.8,0.036847]
[1727286873409,0.832,2578.3,2577.9,3.87912]
[1727286873645,0.06090036,2578.2,2577.9,3.87912]
[1727286874009,3.87853,2578.3,2577.9,3.87912]
[1727286874348,0.06090036,2578.2,2577.8,4.705717]
[1727286875045,0.06090036,2578.1,2577.9,3.87902]
[1727286875218,0.06090036,2578.1,2577.8,0.826447]
[1727286875219,3.87844,2578.4,2577.8,0.826447]
[1727286875541,0.06090036,2578.3,2577.9,3.87911]
[1727286875845,0.832,2578.5,2578.0,3.87896]
[1727286876048,0.06090036,2578.4,2578.1,3.87875]
[1727286876721,3.87819,2578.6,2578.1,3.87875]
[1727286876953,0.06074369,2578.3,2578.1,3.87875]
[1727286877142,7.75637,2578.6,2578.1,3.87875]
[1727286877333,0.06074369,2578.2,2578.0,7.75785]
[1727286877536,0.06074369,2578.2,2578.0,8.66333527]
[1727286877761,3.8781,2578.6,2578.1,3.87882]
[1727286877982,4.65992,2578.7,2578.1,3.87882]
[1727286878191,10.36,2578.9,2578.1,3.87882]
[1727286878192,8.142,2578.9,2578.5,3.87821]
[1727286878486,4.65939,2579.1,2578.6,0.8097]
[1727286878771,4.65939,2579.1,2578.6,4.68774]
[1727286878977,4.65939,2579.1,2578.6,5.544328]
[1727286879163,4.65939,2579.1,2578.6,1.666288]
[1727286879470,4.45804755,2579.1,2578.3,3.87843]
[1727286879690,0.7707,2579.0,2578.3,3.87843]
[1727286880240,3.87785,2578.8,2578.3,3.87843]
[1727286880440,3.87773,2578.9,2578.4,3.87835]
[1727286880740,0.7707,2579.0,2578.4,0.854628]
[1727286880969,0.05923702,2578.8,2578.6,0.7716]
[1727286881242,0.05923702,2578.7,2578.6,0.7716]
[1727286881552,4.64817,2579.0,2578.6,0.7716]
[1727286881754,0.05923702,2578.7,2578.6,0.7716]
[1727286882270,4.64817,2579.0,2578.6,0.7716]
[1727286882438,0.05923702,2578.7,2578.6,0.7716]
[1727286882638,0.7707,2579.0,2578.6,1.7098648]
[1727286882858,0.05923702,2578.9,2578.8,3.87777]
[1727286883105,0.05923702,2578.9,2578.7,3.87783]
[1727286883286,3.87717,2579.2,2578.7,3.87783]
[1727286883577,0.05923702,2578.8,2578.7,3.87783]
[1727286883871,4.66322,2579.3,2578.8,3.87771]
[1727286884424,0.05923702,2579.2,2578.8,3.87771]
[1727286884564,4.66322,2579.3,2578.8,3.87771]
[1727286885003,0.05923702,2579.2,2578.8,3.87771]
[1727286885300,4.66322,2579.3,2578.8,3.87771]
[1727286885499,0.05923702,2579.1,2578.8,3.87771]
[1727286885706,4.66322,2579.3,2578.8,3.87771]
[1727286885870,0.05923702,2579.0,2578.8,3.87771]
[1727286886074,4.66322,2579.3,2578.8,3.87771]
[1727286886676,0.05923702,2579.2,2578.8,3.87771]
[1727286887063,3.87719,2579.2,2578.7,3.87783]
[1727286887266,0.05923702,2579.1,2578.7,3.87783]
[1727286887594,0.05923702,2579.1,2578.9,7.75513]
[1727286887792,3.87695,2579.4,2579.0,0.758]
[1727286888147,0.05923702,2579.3,2579.0,0.758]
[1727286888704,0.05923702,2579.3,2579.1,3.87723]
[1727286888909,4.64166,2579.8,2579.1,3.87723]
[1727286889062,0.05923702,2579.2,2579.1,3.87723]
[1727286889262,3.87644,2579.7,2579.2,3.87708]
[1727286889920,4.64166,2579.8,2579.2,3.87708]
[1727286890074,8.51805,2579.8,2579.3,3.87695]
[1727286890269,3.87636,2579.8,2579.4,0.7739]
[1727286890501,3.87636,2579.8,2579.4,4.65075]
[1727286890898,3.87608,2580.0,2579.4,4.65075]
[1727286890899,3.87613,2579.9,2579.4,4.65075]
[1727286891099,3.87608,2580.0,2579.5,3.87668]
[1727286891387,12.03745,2580.2,2579.8,3.87626]
[1727286891388,0.8017,2580.2,2579.8,3.87626]
[1727286891594,3.87558,2580.3,2579.8,4.65016]
[1727286892317,3.87558,2580.3,2579.8,0.7739]
[1727286892477,7.75119,2580.3,2579.8,0.7739]
[1727286892806,3.87552,2580.3,2579.8,5.502755]
[1727286893003,3.87552,2580.3,2579.8,4.65008]
[1727286894702,4.67718,2580.4,2579.8,4.65008]
[1727286894906,11.23523,2580.5,2580.0,3.87592]
[1727286895115,12.306847,2580.8,2580.3,3.87543]
[1727286895116,0.829647,2580.8,2580.3,3.87543]
[1727286895294,4.704507,2580.8,2580.1,4.63711]
[1727286895793,4.704507,2580.8,2580.1,0.7614]
[1727286895794,3.93659725,2580.7,2580.1,0.7614]
[1727286895989,3.87523,2580.5,2580.1,0.7614]
[1727286896196,0.06180513,2580.4,2580.1,0.7614]
[1727286896393,3.87507,2580.6,2580.1,0.7614]
[1727286896899,0.06181383,2580.5,2580.1,5.5350528]
[1727286897517,0.06181383,2580.5,2580.1,1.6592428]
[1727286898177,0.06181383,2580.5,2580.1,0.7614]
[1727286898378,3.87551,2580.3,2579.8,7.67659]
[1727286898583,3.87551,2580.3,2579.8,7.67665]
[1727286898584,0.06193559,2580.2,2579.8,7.67665]
[1727286898779,3.87551,2580.3,2579.8,3.8004]
[1727286899182,0.06193559,2580.2,2579.8,0.8004]
[1727286899386,0.8266,2580.4,2579.9,3.8761]
[1727286899590,0.06193559,2580.3,2579.9,3.8761]
[1727286900429,0.06193559,2580.3,2579.9,4.731293]
[1727286900629,0.06193559,2580.3,2580.1,3.87577]
[1727286900788,0.8165,2580.6,2580.2,3.87566]
[1727286900996,0.06183122,2580.5,2580.1,3.87577]
[1727286901318,0.06183122,2580.5,2580.1,4.3488753]
[1727286901924,3.93704122,2580.5,2579.9,8.607363]
[1727286902123,3.93704122,2580.5,2580.0,3.87592]
[1727286903031,0.06183122,2580.5,2580.1,3.87581]
[1727286903336,3.93705122,2580.5,2579.9,4.731283]
[1727286903534,0.06183122,2580.5,2580.1,3.8758]
[1727286904143,3.93713122,2580.5,2579.9,3.87601]
[1727286904348,3.93713122,2580.5,2579.8,0.8004]
[1727286904502,3.87545,2580.4,2579.9,3.87611]
[1727286905017,0.06185732,2580.3,2579.9,7.75212]
[1727286905217,3.8753,2580.5,2579.9,4.731262]
[1727286905405,3.93729732,2580.4,2579.9,0.855252]
[1727286905604,3.93729732,2580.4,2579.9,3.8761]
[1727286905605,0.15875083,2580.4,2579.9,3.8761]
[1727286905899,3.93722732,2580.4,2579.9,3.8761]
[1727286906105,0.06185732,2580.4,2580.0,3.87595]
[1727286906828,0.06185732,2580.4,2580.1,3.8758]
[1727286907249,0.06185732,2580.4,2580.1,7.75153]
[1727286907467,4.69156,2580.6,2580.1,3.87573]
[1727286907627,0.06257082,2580.3,2580.1,3.87573]
[1727286907946,4.69156,2580.6,2580.1,3.87573]
[1727286908251,3.87523,2580.5,2580.1,3.87573]
[1727286908453,0.06257082,2580.4,2580.2,3.87566]
[1727286908655,0.8165,2580.6,2580.2,3.87566]
[1727286908948,0.06257082,2580.5,2580.2,3.87566]
[1727286910109,0.06257082,2580.5,2580.3,0.817]
[1727286910455,0.036847,2580.8,2580.4,4.69236]
[1727286910754,0.06056577,2580.7,2580.6,3.87498]
[1727286910961,0.06056577,2580.7,2580.6,3.87506]
[1727286911113,0.036847,2580.8,2580.7,3.87491]
[1727286912012,0.036847,2580.8,2580.4,1.286266]
[1727286912211,0.036847,2580.8,2580.5,3.8752]
[1727286912515,0.822747,2580.8,2580.4,3.87526]
[1727286912855,4.697517,2580.8,2580.4,3.87526]
[1727286913027,0.822747,2580.8,2580.4,3.87526]
[1727286913657,0.822747,2580.8,2580.4,7.75055]
[1727286913950,0.822747,2580.8,2580.5,3.87519]
[1727286914465,0.036847,2580.8,2580.5,3.87519]
[1727286914764,0.036847,2580.8,2580.7,4.70791]
[1727286916323,0.036847,2580.8,2580.7,3.87491]
[1727286916747,0.036847,2580.8,2580.6,3.87506]
[1727286917054,0.036847,2580.8,2580.7,3.87491]
[1727286918240,0.036847,2580.8,2580.5,0.775058]
[1727286918241,0.036847,2580.8,2580.6,0.7981]
[1727286918433,0.036847,2580.8,2580.5,3.87514]
[1727286918672,0.814847,2580.8,2580.5,3.87514]
[1727286919765,0.814847,2580.8,2580.4,3.87525]
[1727286919978,0.814847,2580.8,2580.6,3.87505]
[1727286922126,0.814847,2580.8,2580.4,3.87528]
[1727286923667,4.689627,2580.8,2580.3,7.75092]
[1727286924169,4.689627,2580.8,2580.3,7.75086]
[1727286924378,3.97187429,2580.7,2580.2,3.87553]
[1727286924670,3.97187429,2580.7,2580.1,4.66921]
[1727286924671,3.97187429,2580.7,2580.3,3.87549]
[1727286924842,0.814847,2580.8,2580.4,3.87535]
[1727286925042,4.689677,2580.8,2580.3,3.87549]
[1727286925568,4.689677,2580.8,2580.3,7.75094]
[1727286925782,0.06131432,2580.7,2580.3,7.75094]
[1727286925935,0.06131432,2580.7,2580.3,3.87545]
[1727286926132,0.06131432,2580.7,2580.3,3.87543]
[1727286926374,0.06131432,2580.7,2580.1,0.7935]
[1727286926375,0.7938,2580.6,2579.8,3.8013]
[1727286926592,0.7938,2580.6,2580.0,3.87596]
[1727286926593,0.7938,2580.2,2580.0,3.87596]
[1727286926971,0.06129691,2580.1,2580.0,3.87596]
[1727286928140,0.06129691,2580.1,2580.0,4.651165]
[1727286928639,7.75036,2580.6,2580.0,4.651165]
[1727286928640,0.806,2580.6,2580.3,3.87543]
[1727286929043,0.806,2580.6,2580.2,3.87552]
[1727286930341,0.806,2580.6,2580.2,7.75105]
[1727286930643,0.806,2580.6,2580.2,3.87552]
[1727286930858,0.806,2580.6,2580.2,7.7511]
[1727286931065,0.806,2580.6,2580.2,8.60153]
[1727286931295,0.806,2580.6,2580.2,4.72596]
[1727286931432,0.806,2580.6,2580.3,3.8755]
[1727286934913,0.806,2580.6,2580.2,3.87565]
[1727286935115,0.806,2580.6,2580.2,7.75125]
[1727286935276,0.806,2580.6,2580.4,3.87536]
[1727286935476,3.911617,2580.8,2580.4,3.87536]
[1727286935477,0.847847,2580.8,2580.4,3.87536]
[1727286935713,4.722617,2580.8,2580.4,3.87536]
[1727286936617,4.722617,2580.8,2580.3,3.87548]
[1727286937078,0.847847,2580.8,2580.4,3.87527]
[1727286937229,0.847847,2580.8,2580.5,3.87515]
[1727286937526,0.847847,2580.8,2580.6,3.87499]
[1727286937726,0.847847,2580.8,2580.7,3.87491]
[1727286937727,0.036847,2580.8,2580.7,3.87491]
[1727286938089,0.036847,2580.8,2580.7,4.732395]